[Event "Sunway Sitges Chess Festival"]
[Date "2024.12.21"]
[White "Rindhiya V"]
[Black "Ekam Singh"]
[WhiteElo "2007"]
[BlackElo "1680"]
[Round "6.38"]
[Result "1-0"]
[TimeControl "40/5400+30:1800+30"]

1. e4 {[%clk 1:30:30]} 1... c5 {[%clk 1:30:30]} 2. Nf3 {[%clk 1:31:25]} 2... d6
{[%clk 1:31:17]} 3. d4 {[%clk 1:31:42]} 3... cxd4 {[%clk 1:31:39]} 4. Nxd4
{[%clk 1:32:10]} 4... Nf6 {[%clk 1:32:00]} 5. Nc3 {[%clk 1:32:37]} 5... a6
{[%clk 1:32:17]} 6. Be3 {[%clk 1:33:00]} 6... e5 {[%clk 1:32:37]} 7. Nb3 {[%clk
1:33:26]} 7... Be6 {[%clk 1:32:56]} 8. f3 {[%clk 1:29:48]} 8... h5 {[%clk
1:33:19]} 9. Qd2 {[%clk 1:29:41]} 9... Nbd7 {[%clk 1:33:38]} 10. Nd5 {[%clk
1:27:42]} 10... Bxd5 {[%clk 1:33:58]} 11. exd5 {[%clk 1:28:09]} 11... Qc7 {[%clk
1:34:14]} 12. c4 {[%clk 1:15:50]} 12... a5 {[%clk 1:33:56]} 13. a4 {[%clk
1:09:23]} 13... g6 {[%clk 1:31:37]} 14. Be2 {[%clk 1:06:02]} 14... Bg7 {[%clk
1:33:05]} 15. O-O {[%clk 1:00:08]} 15... O-O {[%clk 1:32:51]} 16. Rac1 {[%clk
0:57:19]} 16... b6 {[%clk 1:25:44]} 17. Kh1 {[%clk 0:45:26]} 17... Rae8 {[%clk
1:18:34]} 18. Bd3 {[%clk 0:37:44]} 18... Kh7 {[%clk 1:07:50]} 19. Be2 {[%clk
0:38:14]} 19... Nc5 {[%clk 0:56:30]} 20. Nxc5 {[%clk 0:35:38]} 20... bxc5 {[%clk
0:56:49]} 21. Rce1 {[%clk 0:30:41]} 21... Qb6 {[%clk 0:50:02]} 22. Qc2 {[%clk
0:29:46]} 22... Rb8 {[%clk 0:42:44]} 23. Rb1 {[%clk 0:29:00]} 23... Qb3 {[%clk
0:39:31]} 24. Qxb3 {[%clk 0:29:01]} 24... Rxb3 {[%clk 0:39:59]} 25. Bd2 {[%clk
0:29:21]} 25... Rfb8 {[%clk 0:40:07]} 26. Bc3 {[%clk 0:28:22]} 26... e4 {[%clk
0:32:09]} 27. Rbe1 {[%clk 0:24:39]} 27... Nd7 {[%clk 0:17:33]} 28. Bxa5 {[%clk
0:02:12]} 28... exf3 {[%clk 0:16:58]} 29. Bxf3 {[%clk 0:02:19]} 29... Ra8 {[%clk
0:07:09]} 30. Bc7 {[%clk 0:02:16]} 30... Ne5 {[%clk 0:06:43]} 31. Bxd6 {[%clk
0:02:07]} 31... Nxf3 {[%clk 0:04:29]} 32. Rxf3 {[%clk 0:01:56]} 32... Rxf3
{[%clk 0:04:54]} 33. gxf3 {[%clk 0:02:23]} 33... Rxa4 {[%clk 0:02:53]} 34. b3
{[%clk 0:01:51]} 34... Ra3 {[%clk 0:00:49]} 35. Rb1 {[%clk 0:02:02]} 35... Bd4
{[%clk 0:00:51]} 36. Bc7 {[%clk 0:01:37]} 36... Ra2 {[%clk 0:00:43]} 37. Re1
{[%clk 0:00:38]} 37... Rd2 {[%clk 0:00:37]} 38. d6 {[%clk 0:00:36]} 38... Bf6
{[%clk 0:00:36]} 39. Re8 {[%clk 0:00:35]} 39... h4 {[%clk 0:00:36]} 40. h3
{[%clk 0:31:01]} 40... Kg7 {[%clk 0:30:35]} 41. Kg1 {[%clk 0:30:03]} 41... Bg5
{[%clk 0:23:55]} 42. Re4 {[%clk 0:25:11]} 42... Bf6 {[%clk 0:18:44]} 43. Kf1
{[%clk 0:23:59]} 43... g5 {[%clk 0:11:48]} 44. Re3 {[%clk 0:13:52]} 44... Bd4
{[%clk 0:08:09]} 45. Re7 {[%clk 0:09:20]} 45... Bf6 {[%clk 0:07:43]} 46. Re8
{[%clk 0:05:52]} 46... Kg6 {[%clk 0:04:12]} 47. Rb8 {[%clk 0:05:41]} 47... Be5
{[%clk 0:03:09]} 48. Rb5 {[%clk 0:05:50]} 48... f6 {[%clk 0:02:20]} 49. Rxc5
{[%clk 0:04:42]} 49... Bxd6 {[%clk 0:02:48]} 50. Bxd6 {[%clk 0:05:01]} 50...
Rxd6 {[%clk 0:03:15]} 51. Ke2 {[%clk 0:04:18]} 51... Ra6 {[%clk 0:02:43]} 52. b4
{[%clk 0:03:06]} 52... Ra2+ {[%clk 0:02:56]} 53. Ke3 {[%clk 0:03:31]} 53... Rb2
{[%clk 0:00:42]} 54. b5 {[%clk 0:03:58]} 54... Rb3+ {[%clk 0:00:34]} 55. Ke4
{[%clk 0:04:18]} 55... Rb1 {[%clk 0:00:37]} 56. Rc6 {[%clk 0:04:35]} 56... Re1+
{[%clk 0:00:53]} 57. Kd5 {[%clk 0:03:57]} 57... Kf5 {[%clk 0:00:46]} 58. b6
{[%clk 0:04:04]} 58... Rb1 {[%clk 0:00:34]} 59. c5 {[%clk 0:01:04]} 59... Rd1+
{[%clk 0:00:43]} 60. Kc4 {[%clk 0:01:31]} 60... Rc1+ {[%clk 0:00:41]} 61. Kd3
{[%clk 0:01:52]} 61... Rb1 {[%clk 0:00:48]} 62. Rc7 {[%clk 0:02:17]} 62... Kf4
{[%clk 0:00:58]} 63. b7 {[%clk 0:02:19]} 63... Kxf3 {[%clk 0:00:38]} 64. c6
{[%clk 0:02:45]} 64... g4 {[%clk 0:00:33]} 65. hxg4 {[%clk 0:03:07]} 65... h3
{[%clk 0:00:48]} 66. Rh7 {[%clk 0:02:49]} 66... Kg2 {[%clk 0:00:58]} 67. Rxh3
{[%clk 0:01:17]} 67... Kxh3 {[%clk 0:01:14]} 68. c7 {[%clk 0:01:43]} 68... Rxb7
{[%clk 0:01:39]} 69. c8=Q {[%clk 0:02:09]} 69... Rb3+ {[%clk 0:01:36]} 70. Kc2
{[%clk 0:02:35]} 70... Rg3 {[%clk 0:01:48]} 71. g5+ {[%clk 0:02:58]} 71... Kh4
{[%clk 0:01:49]} 72. gxf6 {[%clk 0:03:25]} 1-0

[Variant "Standard"]
[Site "Europe Echecs"]

[Event "Sunway Sitges Chess Festival"]
[Date "2024.12.21"]
[White "Dolas, Aarush"]
[Black "Gupta, Anand"]
[WhiteElo "2014"]
[BlackElo "1792"]
[Round "6.39"]
[Result "0-1"]
[TimeControl "40/5400+30:1800+30"]

1. e4 {[%clk 1:30:58]} 1... c6 {[%clk 1:25:38]} 2. d3 {[%clk 1:31:21]} 2... d5
{[%clk 1:26:02]} 3. Nd2 {[%clk 1:31:43]} 3... e5 {[%clk 1:26:24]} 4. Ngf3 {[%clk
1:31:52]} 4... Bd6 {[%clk 1:26:48]} 5. g3 {[%clk 1:31:56]} 5... Nf6 {[%clk
1:27:13]} 6. Bg2 {[%clk 1:32:02]} 6... O-O {[%clk 1:27:33]} 7. O-O {[%clk
1:32:18]} 7... Re8 {[%clk 1:27:40]} 8. Re1 {[%clk 1:31:55]} 8... Nbd7 {[%clk
1:28:03]} 9. a3 {[%clk 1:29:36]} 9... a5 {[%clk 1:28:18]} 10. c3 {[%clk
1:21:06]} 10... Nc5 {[%clk 1:26:19]} 11. Qc2 {[%clk 1:20:27]} 11... dxe4 {[%clk
1:24:03]} 12. Nxe4 {[%clk 1:20:33]} 12... Nfxe4 {[%clk 8:13:05]} 13. dxe4 {[%clk
1:19:52]} 13... Be6 {[%clk 1:23:11]} 14. b4 {[%clk 1:15:13]} 14... Nb3 {[%clk
1:21:03]} 15. Rb1 {[%clk 1:14:35]} 15... a4 {[%clk 1:21:19]} 16. Be3 {[%clk
1:08:24]} 16... Qc7 {[%clk 1:17:41]} 17. Nd2 {[%clk 1:01:36]} 17... c5 {[%clk
1:15:01]} 18. Nxb3 {[%clk 1:00:09]} 18... axb3 {[%clk 1:15:22]} 19. Qb2 {[%clk
0:59:19]} 19... c4 {[%clk 1:15:46]} 20. Ra1 {[%clk 0:59:01]} 20... b5 {[%clk
1:15:39]} 21. Red1 {[%clk 0:59:02]} 21... Ra6 {[%clk 1:14:13]} 22. Qe2 {[%clk
0:54:19]} 22... Rea8 {[%clk 1:14:23]} 23. Bc1 {[%clk 0:54:35]} 23... Be7 {[%clk
1:10:05]} 24. Bb2 {[%clk 0:54:12]} 24... Rd8 {[%clk 1:10:24]} 25. Rxd8+ {[%clk
0:46:40]} 25... Qxd8 {[%clk 1:10:47]} 26. Rd1 {[%clk 0:44:19]} 26... Rd6 {[%clk
1:11:10]} 27. Rxd6 {[%clk 0:44:04]} 27... Qxd6 {[%clk 1:11:31]} 28. h4 {[%clk
0:43:23]} 28... g5 {[%clk 1:09:46]} 29. hxg5 {[%clk 0:40:23]} 29... Bxg5 {[%clk
1:10:06]} 30. Bf3 {[%clk 0:39:30]} 30... Qd3 {[%clk 1:08:54]} 31. Kg2 {[%clk
0:12:58]} 31... Bd7 {[%clk 1:01:35]} 32. Qe1 {[%clk 0:00:41]} 32... Bc6 {[%clk
1:00:12]} 33. Bc1 {[%clk 0:01:10]} 33... h6 {[%clk 0:57:44]} 34. a4 {[%clk
0:00:34]} 34... bxa4 {[%clk 0:55:34]} 35. b5 {[%clk 0:01:02]} 35... Bxb5 {[%clk
0:55:02]} 36. Bxg5 {[%clk 0:01:29]} 36... hxg5 {[%clk 0:55:20]} 37. Qc1 {[%clk
0:01:58]} 37... Qd8 {[%clk 0:55:08]} 38. Bg4 {[%clk 0:01:31]} 38... Qe7 {[%clk
0:54:51]} 39. Bf5 {[%clk 0:01:52]} 39... a3 {[%clk 0:54:30]} 40. Qh1 {[%clk
0:32:19]} 40... f6 {[%clk 1:24:32]} 41. Qh5 {[%clk 0:27:48]} 41... Be8 {[%clk
1:23:28]} 42. Qd1 {[%clk 0:27:44]} 42... b2 {[%clk 1:22:56]} 43. Qd5+ {[%clk
0:27:51]} 43... Kg7 {[%clk 1:23:10]} 44. Qd1 {[%clk 0:27:43]} 44... a2 {[%clk
1:23:14]} 45. Qh1 {[%clk 0:28:11]} 45... Bg6 {[%clk 1:23:21]} 46. Bxg6 {[%clk
0:28:28]} 46... Kxg6 {[%clk 1:23:47]} 47. Qh8 {[%clk 0:28:46]} 47... Qf7 {[%clk
1:23:42]} 48. f4 {[%clk 0:29:03]} 48... exf4 {[%clk 1:23:31]} 49. gxf4 {[%clk
0:29:19]} 49... gxf4 {[%clk 1:23:54]} 50. e5 {[%clk 0:27:50]} 50... Qd5+ {[%clk
1:24:05]} 51. Kh2 {[%clk 0:28:11]} 51... Qd2+ {[%clk 1:24:24]} 52. Kh3 {[%clk
0:28:19]} 52... Qe3+ {[%clk 1:24:48]} 53. Kg2 {[%clk 0:28:44]} 53... Qg3+ {[%clk
1:25:10]} 54. Kf1 {[%clk 0:29:11]} 54... b1=Q+ {[%clk 1:25:31]} 55. Ke2 {[%clk
0:29:30]} 55... Qbd3# {[%clk 1:25:26]} 0-1

[Variant "Standard"]
[Site "Europe Echecs"]

[Event "Sunway Sitges Chess Festival"]
[Date "2024.12.21"]
[White "Koudounis, Vasileios"]
[Black "Wang, Lachlan"]
[WhiteElo "2190"]
[BlackElo "1848"]
[Round "6.40"]
[Result "0-1"]
[TimeControl "40/5400+30:1800+30"]

1. d4 {[%clk 1:30:28]} 1... Nf6 {[%clk 1:30:37]} 2. Nf3 {[%clk 1:30:45]} 2... g6
{[%clk 1:30:52]} 3. Bg5 {[%clk 1:31:07]} 3... Bg7 {[%clk 1:31:00]} 4. c3 {[%clk
1:31:26]} 4... d6 {[%clk 1:30:56]} 5. Nbd2 {[%clk 1:31:44]} 5... O-O {[%clk
1:27:33]} 6. e4 {[%clk 1:32:01]} 6... c5 {[%clk 1:25:06]} 7. dxc5 {[%clk
1:32:20]} 7... dxc5 {[%clk 1:25:35]} 8. Be2 {[%clk 1:30:39]} 8... Nc6 {[%clk
1:25:11]} 9. O-O {[%clk 1:30:05]} 9... Qc7 {[%clk 1:22:53]} 10. Qc2 {[%clk
1:25:13]} 10... b6 {[%clk 1:17:16]} 11. Nc4 {[%clk 1:13:35]} 11... Be6 {[%clk
1:04:51]} 12. Rfe1 {[%clk 1:16:28]} 12... Rfd8 {[%clk 1:00:58]} 13. Bh4 {[%clk
1:11:32]} 13... h6 {[%clk 0:57:24]} 14. Bg3 {[%clk 1:11:08]} 14... Qb7 {[%clk
0:55:27]} 15. Nfd2 {[%clk 1:06:55]} 15... Rac8 {[%clk 0:50:37]} 16. a4 {[%clk
1:06:07]} 16... a6 {[%clk 0:38:33]} 17. a5 {[%clk 0:44:40]} 17... Nxa5 {[%clk
0:24:03]} 18. Nxa5 {[%clk 0:54:37]} 18... bxa5 {[%clk 0:24:32]} 19. Rxa5 {[%clk
0:52:20]} 19... c4 {[%clk 0:24:09]} 20. Rea1 {[%clk 0:47:19]} 20... Rc6 {[%clk
0:10:23]} 21. Bf4 {[%clk 0:46:13]} 21... g5 {[%clk 0:09:46]} 22. Be5 {[%clk
0:41:08]} 22... Nd7 {[%clk 0:08:27]} 23. Bd4 {[%clk 0:36:11]} 23... Rb8 {[%clk
0:08:24]} 24. R1a2 {[%clk 0:36:29]} 24... Rbc8 {[%clk 0:04:13]} 25. Nf3 {[%clk
0:34:26]} 25... g4 {[%clk 0:01:21]} 26. Bxg7 {[%clk 0:12:31]} 26... gxf3 {[%clk
0:01:06]} 27. Bxf3 {[%clk 0:11:56]} 27... Kxg7 {[%clk 0:01:25]} 28. e5 {[%clk
0:12:25]} 28... Qb3 {[%clk 0:00:48]} 29. Qb1 {[%clk 0:10:41]} 29... Rc5 {[%clk
0:01:02]} 30. Rxa6 {[%clk 0:07:14]} 30... Nxe5 {[%clk 0:01:09]} 31. Be4 {[%clk
0:07:43]} 31... Rd8 {[%clk 0:01:06]} 32. Bc2 {[%clk 0:07:56]} 32... Qb5 {[%clk
0:01:10]} 33. Be4 {[%clk 0:05:20]} 33... Nd3 {[%clk 0:00:56]} 34. Qd1 {[%clk
0:05:48]} 34... Qb8 {[%clk 0:00:58]} 35. Ra8 {[%clk 0:04:35]} 35... Qd6 {[%clk
0:01:26]} 36. Qd2 {[%clk 0:05:04]} 36... Rxa8 {[%clk 0:01:33]} 37. Rxa8 {[%clk
0:05:33]} 37... Qf4 {[%clk 0:01:42]} 0-1

[Variant "Standard"]
[Site "Europe Echecs"]

[Event "Sunway Sitges Chess Festival"]
[Date "2024.12.21"]
[White "Schulman, Julia"]
[Black "Badenhorst, Chloe"]
[WhiteElo "1852"]
[BlackElo "1970"]
[Round "6.41"]
[Result "0-1"]
[TimeControl "40/5400+30:1800+30"]

1. e4 {[%clk 1:30:56]} 1... c6 {[%clk 1:30:58]} 2. d4 {[%clk 1:31:11]} 2... d5
{[%clk 1:31:18]} 3. Nc3 {[%clk 1:31:28]} 3... dxe4 {[%clk 1:31:26]} 4. Nxe4
{[%clk 1:31:49]} 4... Nf6 {[%clk 1:31:39]} 5. Nxf6+ {[%clk 1:32:05]} 5... exf6
{[%clk 1:32:06]} 6. Be3 {[%clk 1:32:11]} 6... Bd6 {[%clk 1:32:04]} 7. Bd3 {[%clk
1:30:44]} 7... Nd7 {[%clk 1:31:49]} 8. Ne2 {[%clk 1:29:13]} 8... f5 {[%clk
1:31:59]} 9. O-O {[%clk 1:21:45]} 9... Nf6 {[%clk 1:31:48]} 10. h3 {[%clk
1:18:46]} 10... O-O {[%clk 1:28:39]} 11. c4 {[%clk 1:11:50]} 11... Be6 {[%clk
1:28:43]} 12. Qc2 {[%clk 1:06:39]} 12... Qd7 {[%clk 1:22:23]} 13. Rad1 {[%clk
0:58:45]} 13... Rac8 {[%clk 1:20:14]} 14. b3 {[%clk 0:49:05]} 14... b5 {[%clk
1:16:08]} 15. Bf4 {[%clk 0:34:52]} 15... bxc4 {[%clk 1:11:55]} 16. bxc4 {[%clk
0:35:18]} 16... Bxf4 {[%clk 0:48:03]} 17. Nxf4 {[%clk 0:35:46]} 17... Qxd4
{[%clk 0:46:51]} 18. Nxe6 {[%clk 0:35:47]} 18... fxe6 {[%clk 0:47:19]} 19. Bxf5
{[%clk 0:34:29]} 19... Qe5 {[%clk 0:47:25]} 20. Bd3 {[%clk 0:34:06]} 20... Qc5
{[%clk 0:44:53]} 21. Rd2 {[%clk 0:30:20]} 21... e5 {[%clk 0:40:33]} 22. Re2
{[%clk 0:28:04]} 22... Rce8 {[%clk 0:40:00]} 23. Rfe1 {[%clk 0:26:23]} 23... Re7
{[%clk 0:38:19]} 24. Be4 {[%clk 0:26:01]} 24... Ref7 {[%clk 0:34:36]} 25. Rf1
{[%clk 0:22:21]} 25... Rd7 {[%clk 0:31:10]} 26. Bf5 {[%clk 0:17:20]} 26... Rd4
{[%clk 0:26:24]} 27. Be6+ {[%clk 0:13:05]} 27... Kh8 {[%clk 0:26:41]} 28. Rd1
{[%clk 0:09:46]} 28... Rfd8 {[%clk 0:18:21]} 29. Rxd4 {[%clk 0:10:12]} 29...
exd4 {[%clk 0:16:20]} 30. Qd3 {[%clk 0:10:09]} 30... Qd6 {[%clk 0:15:12]} 31.
Bf5 {[%clk 0:09:53]} 31... g6 {[%clk 0:11:47]} 32. Re6 {[%clk 0:08:29]} 32...
Qf8 {[%clk 0:08:57]} 33. Bg4 {[%clk 0:05:10]} 33... c5 {[%clk 0:03:56]} 34. Bf3
{[%clk 0:03:48]} 34... Qf7 {[%clk 0:03:57]} 35. Re5 {[%clk 0:03:43]} 35... Nd7
{[%clk 0:02:54]} 36. Rd5 {[%clk 0:04:01]} 36... Re8 {[%clk 0:01:50]} 37. Qd2
{[%clk 0:03:12]} 37... Qe7 {[%clk 0:01:12]} 38. Qf4 {[%clk 0:02:37]} 38... Nb6
{[%clk 0:01:03]} 39. Rg5 {[%clk 0:01:51]} 39... Rf8 {[%clk 0:01:00]} 40. Qg3
{[%clk 0:31:45]} 40... Qe1+ {[%clk 0:30:49]} 41. Kh2 {[%clk 0:32:02]} 41... Nxc4
{[%clk 0:19:54]} 42. Rxc5 {[%clk 0:31:39]} 42... Nd2 {[%clk 0:15:42]} 43. Qe5+
{[%clk 0:26:26]} 43... Qxe5+ {[%clk 0:16:02]} 44. Rxe5 {[%clk 0:26:52]} 44...
Nxf3+ {[%clk 0:14:34]} 45. gxf3 {[%clk 0:27:18]} 45... Rxf3 {[%clk 0:13:16]} 46.
Kg2 {[%clk 0:27:35]} 46... Ra3 {[%clk 0:12:58]} 47. Rd5 {[%clk 0:27:53]} 47...
d3 {[%clk 0:12:22]} 48. Rd7 {[%clk 0:26:08]} 48... Kg8 {[%clk 0:12:19]} 49. Kf1
{[%clk 0:24:45]} 49... h6 {[%clk 0:07:37]} 50. h4 {[%clk 0:22:29]} 50... a5
{[%clk 0:06:36]} 51. Ke1 {[%clk 0:21:19]} 51... a4 {[%clk 0:05:37]} 52. f4
{[%clk 0:20:39]} 52... Rxa2 {[%clk 0:04:38]} 53. Rxd3 {[%clk 0:21:03]} 53... Kf7
{[%clk 0:03:02]} 54. Rd6 {[%clk 0:19:42]} 54... a3 {[%clk 0:03:01]} 55. Ra6
{[%clk 0:19:48]} 55... Rh2 {[%clk 0:01:58]} 56. Rxa3 {[%clk 0:19:49]} 56... Rxh4
{[%clk 0:02:25]} 57. Rf3 {[%clk 0:19:29]} 57... Kf6 {[%clk 0:02:34]} 58. Kf2
{[%clk 0:18:43]} 58... Kf5 {[%clk 0:02:41]} 59. Ke3 {[%clk 0:18:37]} 59... h5
{[%clk 0:02:34]} 60. Rf1 {[%clk 0:16:58]} 60... Rh3+ {[%clk 0:02:36]} 61. Ke2
{[%clk 0:17:10]} 61... Ke4 {[%clk 0:02:39]} 62. Rg1 {[%clk 0:15:26]} 62... Rh2+
{[%clk 0:02:56]} 63. Kf1 {[%clk 0:15:05]} 63... Kf5 {[%clk 0:03:08]} 64. Rg5+
{[%clk 0:14:31]} 64... Kf6 {[%clk 0:03:34]} 65. Ra5 {[%clk 0:11:39]} 65... Rh4
{[%clk 0:03:29]} 66. Ra6+ {[%clk 0:06:08]} 66... Kf5 {[%clk 0:03:44]} 67. Ra5+
{[%clk 0:05:21]} 67... Kxf4 {[%clk 0:03:58]} 68. Kg2 {[%clk 0:04:10]} 68... Rg4+
{[%clk 0:04:06]} 69. Kh3 {[%clk 0:04:13]} 69... Rg3+ {[%clk 0:03:42]} 70. Kh4
{[%clk 0:03:29]} 70... Re3 {[%clk 0:03:43]} 71. Ra4+ {[%clk 0:02:57]} 71... Re4
{[%clk 0:03:54]} 72. Ra5 {[%clk 0:02:42]} 72... Re5 {[%clk 0:04:04]} 73. Ra4+
{[%clk 0:02:47]} 73... Kf5 {[%clk 0:04:24]} 74. Ra8 {[%clk 0:01:56]} 74... Re4+
{[%clk 0:04:44]} 75. Kg3 {[%clk 0:01:59]} 75... g5 {[%clk 0:02:24]} 76. Rf8+
{[%clk 0:01:58]} 76... Ke5 {[%clk 0:02:36]} 77. Re8+ {[%clk 0:02:11]} 77... Kd4
{[%clk 0:02:53]} 78. Rd8+ {[%clk 0:02:13]} 78... Ke3 {[%clk 0:03:15]} 79. Rg8
{[%clk 0:02:10]} 79... Rg4+ {[%clk 0:03:09]} 80. Kh2 {[%clk 0:02:18]} 80... Kf2
{[%clk 0:03:09]} 0-1

[Variant "Standard"]
[Site "Europe Echecs"]

[Event "Sunway Sitges Chess Festival"]
[Date "2024.12.21"]
[White "Schmitt, Carsten"]
[Black "Koridze, Lile"]
[WhiteElo "1976"]
[BlackElo "2107"]
[Round "6.42"]
[Result "0-1"]
[TimeControl "40/5400+30:1800+30"]

1. c4 {[%clk 1:30:53]} 1... e5 {[%clk 1:30:44]} 2. g3 {[%clk 1:31:15]} 2... Nc6
{[%clk 1:29:46]} 3. Bg2 {[%clk 1:30:14]} 3... Nf6 {[%clk 1:27:11]} 4. Nc3 {[%clk
1:31:56]} 4... a5 {[%clk 1:23:19]} 5. a3 {[%clk 1:28:19]} 5... Bc5 {[%clk
1:21:47]} 6. e3 {[%clk 1:28:41]} 6... O-O {[%clk 1:15:35]} 7. Nge2 {[%clk
1:24:52]} 7... Re8 {[%clk 1:12:40]} 8. O-O {[%clk 1:24:26]} 8... d6 {[%clk
1:00:58]} 9. d4 {[%clk 1:18:16]} 9... exd4 {[%clk 1:10:12]} 10. exd4 {[%clk
1:18:44]} 10... Bb6 {[%clk 1:05:52]} 11. Be3 {[%clk 1:14:42]} 11... Bg4 {[%clk
1:03:15]} 12. h3 {[%clk 1:12:34]} 12... Bd7 {[%clk 0:48:03]} 13. Qd2 {[%clk
1:09:11]} 13... h6 {[%clk 0:40:55]} 14. Rae1 {[%clk 0:56:44]} 14... Ne7 {[%clk
0:28:05]} 15. g4 {[%clk 0:53:14]} 15... c6 {[%clk 0:44:31]} 16. g5 {[%clk
0:45:15]} 16... hxg5 {[%clk 0:41:09]} 17. Bxg5 {[%clk 0:44:33]} 17... Nh7 {[%clk
0:25:27]} 18. Bf4 {[%clk 0:38:34]} 18... Nf5 {[%clk 0:34:41]} 19. c5 {[%clk
0:28:43]} 19... dxc5 {[%clk 0:32:08]} 20. dxc5 {[%clk 0:31:06]} 20... Bxc5
{[%clk 0:32:07]} 21. Ne4 {[%clk 0:29:19]} 21... Bb6 {[%clk 0:28:20]} 22. Rd1
{[%clk 0:24:16]} 22... Be6 {[%clk 0:26:05]} 23. Qc3 {[%clk 0:22:45]} 23... Qh4
{[%clk 0:16:09]} 24. N4g3 {[%clk 0:21:21]} 24... Nxg3 {[%clk 0:20:47]} 25. Bxg3
{[%clk 0:15:34]} 25... Qh6 {[%clk 0:15:41]} 26. Nf4 {[%clk 0:12:16]} 26... Bf5
{[%clk 0:13:57]} 27. Nd3 {[%clk 0:07:30]} 27... Bxh3 {[%clk 0:14:57]} 28. Bxh3
{[%clk 0:07:42]} 28... Qxh3 {[%clk 0:15:23]} 29. Ne5 {[%clk 0:06:29]} 29... Ng5
{[%clk 0:13:35]} 30. Rd7 {[%clk 0:06:52]} 30... Rxe5 {[%clk 0:11:41]} 0-1

[Variant "Standard"]
[Site "Europe Echecs"]

[Event "Sunway Sitges Chess Festival"]
[Date "2024.12.21"]
[White "Liu, Xiangyi"]
[Black "Nalbandyan, Vahan"]
[WhiteElo "2372"]
[BlackElo "2197"]
[Round "6.43"]
[Result "1-0"]
[TimeControl "40/5400+30:1800+30"]

1. Nf3 {[%clk 1:21:25]} 1... Nf6 {[%clk 1:30:16]} 2. d4 {[%clk 1:21:51]} 2... e6
{[%clk 1:29:41]} 3. g3 {[%clk 1:22:16]} 3... d5 {[%clk 1:28:58]} 4. Bg2 {[%clk
1:22:42]} 4... Be7 {[%clk 1:29:16]} 5. O-O {[%clk 1:23:06]} 5... O-O {[%clk
1:29:34]} 6. c4 {[%clk 1:21:46]} 6... dxc4 {[%clk 1:23:40]} 7. Ne5 {[%clk
1:14:01]} 7... Nc6 {[%clk 1:29:44]} 8. Nxc6 {[%clk 1:12:18]} 8... bxc6 {[%clk
1:30:04]} 9. Na3 {[%clk 1:12:44]} 9... Bxa3 {[%clk 1:25:10]} 10. bxa3 {[%clk
1:12:16]} 10... Rb8 {[%clk 1:20:37]} 11. Qd2 {[%clk 0:56:30]} 11... Nd5 {[%clk
1:14:34]} 12. a4 {[%clk 0:45:30]} 12... Qe7 {[%clk 1:05:24]} 13. e4 {[%clk
0:44:37]} 13... Nb4 {[%clk 1:04:07]} 14. Qc3 {[%clk 0:42:35]} 14... c5 {[%clk
1:01:40]} 15. dxc5 {[%clk 0:36:19]} 15... Qxc5 {[%clk 0:53:01]} 16. Be3 {[%clk
0:33:49]} 16... Qa5 {[%clk 0:47:25]} 17. a3 {[%clk 0:26:21]} 17... Nc6 {[%clk
0:47:36]} 18. Qxc4 {[%clk 0:26:48]} 18... Ne5 {[%clk 0:44:17]} 19. Qd4 {[%clk
0:24:22]} 19... Ba6 {[%clk 0:42:54]} 20. Rfc1 {[%clk 0:24:46]} 20... Nd3 {[%clk
0:39:30]} 21. Rc6 {[%clk 0:24:18]} 21... Bb7 {[%clk 0:34:46]} 22. Qc3 {[%clk
0:16:52]} 22... Qxc3 {[%clk 0:14:34]} 23. Rxc3 {[%clk 0:22:12]} 23... Nb2 {[%clk
0:14:59]} 24. Rxc7 {[%clk 0:16:46]} 24... Ba6 {[%clk 0:15:25]} 25. Rxa7 {[%clk
0:11:09]} 25... Bd3 {[%clk 0:15:22]} 26. e5 {[%clk 0:06:55]} 26... Rfd8 {[%clk
0:15:18]} 27. Bc5 {[%clk 0:06:21]} 27... Nc4 {[%clk 0:15:19]} 28. a5 {[%clk
0:04:25]} 28... Rb5 {[%clk 0:12:52]} 29. Bb4 {[%clk 0:03:30]} 29... Rxe5 {[%clk
0:11:32]} 30. a6 {[%clk 0:03:21]} 30... Red5 {[%clk 0:02:14]} 31. Rb7 {[%clk
0:02:57]} 31... Ne5 {[%clk 0:02:02]} 32. a7 {[%clk 0:02:37]} 32... Nc6 {[%clk
0:02:13]} 33. Rc1 {[%clk 0:02:03]} 33... Ba6 {[%clk 0:02:22]} 34. Bxd5 {[%clk
0:02:20]} 1-0

[Variant "Standard"]
[Site "Europe Echecs"]